fUSD/lending_fUSD_20260630
["ID","MTS","AMOUNT","RATE_DAILY","PERIOD"]
[426750035,1782779442000,-504.84673108,0.00013698,2]
[426750048,1782779442000,-500.0,0.00013698,2]
[426750059,1782779442000,-294.12807726,0.00013698,2]
[426750051,1782779442000,-500.0,0.00013698,2]
[426750050,1782779442000,-500.0,0.00013698,2]
[426750052,1782779442000,-500.0,0.00013698,2]
[426750053,1782779442000,-500.0,0.00013698,2]
[426750054,1782779442000,-500.0,0.00013698,2]
[426750055,1782779442000,-518.16800403,0.00013698,2]
[426750058,1782779442000,-500.0,0.00013698,2]
[426750060,1782779442000,-500.0,0.00013698,2]
[426750056,1782779442000,-500.0,0.00013698,2]
[426750057,1782779442000,-500.0,0.00013698,2]
[426750027,1782779442000,-500.0,0.00013698,2]
[426750061,1782779442000,-500.0,0.00013698,2]
[426750049,1782779442000,-500.0,0.00013698,2]
[426750022,1782779442000,-500.0,0.00013698,2]
[426749970,1782779442000,-500.0,0.00013698,2]
[426750020,1782779442000,-500.0,0.00013698,2]
[426750062,1782779442000,-500.0,0.00013698,2]
[426749975,1782779442000,-500.0,0.00013698,2]
[426749973,1782779442000,-500.0,0.00013698,2]
[426749966,1782779442000,-500.0,0.00013698,2]
[426749981,1782779442000,-500.0,0.00013698,2]
[426749978,1782779442000,-500.0,0.00013698,2]
[426749982,1782779442000,-500.0,0.00013698,2]
[426749977,1782779442000,-581.73724219,0.00013698,2]
[426749968,1782779442000,-500.0,0.00013698,2]
[426749984,1782779442000,-534.63292639,0.00013698,2]
[426749988,1782779442000,-500.0,0.00013698,2]
[426749986,1782779442000,-500.0,0.00013698,2]
[426750014,1782779442000,-500.0,0.00013698,2]
[426749990,1782779442000,-500.0,0.00013698,2]
[426749992,1782779442000,-500.0,0.00013698,2]
[426749996,1782779442000,-500.0,0.00013698,2]
[426749998,1782779442000,-500.0,0.00013698,2]
[426750000,1782779442000,-500.0,0.00013698,2]
[426750002,1782779442000,-500.0,0.00013698,2]
[426750006,1782779442000,-500.0,0.00013698,2]
[426750008,1782779442000,-500.0,0.00013698,2]
[426750003,1782779442000,-500.0,0.00013698,2]
[426750010,1782779442000,-500.0,0.00013698,2]
[426750012,1782779442000,-500.0,0.00013698,2]
[426750016,1782779442000,-500.0,0.00013698,2]
[426750018,1782779442000,-500.0,0.00013698,2]
[426749994,1782779442000,-500.0,0.00013698,2]
[426750065,1782779442000,-500.0,0.00013698,2]
[426750121,1782779442000,-683.34,0.00013698,2]
[426750064,1782779442000,-500.0,0.00013698,2]
[426750097,1782779442000,-511.14,0.00013698,2]
[426750094,1782779442000,-511.14,0.00013698,2]
[426750099,1782779442000,-511.14,0.00013698,2]
[426750101,1782779442000,-511.14,0.00013698,2]
[426750100,1782779442000,-511.14,0.00013698,2]
[426750102,1782779442000,-511.14,0.00013698,2]
[426750106,1782779442000,-511.14,0.00013698,2]
[426750107,1782779442000,-511.14,0.00013698,2]
[426750108,1782779442000,-500.0,0.00013698,2]
[426750110,1782779442000,-500.0,0.00013698,2]
[426750104,1782779442000,-511.14,0.00013698,2]
[426750113,1782779442000,-683.34,0.00013698,2]
[426750096,1782779442000,-511.14,0.00013698,2]
[426750111,1782779442000,-683.34,0.00013698,2]
[426750116,1782779442000,-683.34,0.00013698,2]
[426750114,1782779442000,-683.34,0.00013698,2]
[426750117,1782779442000,-683.34,0.00013698,2]
[426750118,1782779442000,-683.34,0.00013698,2]
[426750125,1782779442000,-500.0,0.00013698,2]
[426750119,1782779442000,-683.34,0.00013698,2]
[426750123,1782779442000,-500.0,0.00013698,2]
[426750115,1782779442000,-683.34,0.00013698,2]
[426750120,1782779442000,-683.34,0.00013698,2]
[426750124,1782779442000,-500.0,0.00013698,2]
[426750122,1782779442000,-683.34,0.00013698,2]
[426750063,1782779442000,-500.0,0.00013698,2]
[426750112,1782779442000,-683.34,0.00013698,2]
[426750095,1782779442000,-511.14,0.00013698,2]
[426750109,1782779442000,-500.0,0.00013698,2]
[426750091,1782779442000,-500.0,0.00013698,2]
[426750098,1782779442000,-511.14,0.00013698,2]
[426750068,1782779442000,-500.0,0.00013698,2]
[426750066,1782779442000,-500.0,0.00013698,2]
[426750070,1782779442000,-500.0,0.00013698,2]
[426750067,1782779442000,-500.0,0.00013698,2]
[426750072,1782779442000,-500.0,0.00013698,2]
[426750073,1782779442000,-500.0,0.00013698,2]
[426750071,1782779442000,-500.0,0.00013698,2]
[426750075,1782779442000,-500.0,0.00013698,2]
[426750076,1782779442000,-500.0,0.00013698,2]
[426750074,1782779442000,-500.0,0.00013698,2]
[426750080,1782779442000,-500.0,0.00013698,2]
[426750077,1782779442000,-500.0,0.00013698,2]
[426750069,1782779442000,-500.0,0.00013698,2]
[426750086,1782779442000,-500.0,0.00013698,2]
[426750085,1782779442000,-500.0,0.00013698,2]
[426750088,1782779442000,-500.0,0.00013698,2]
[426750092,1782779442000,-500.0,0.00013698,2]
[426750093,1782779442000,-500.0,0.00013698,2]
[426750089,1782779442000,-500.0,0.00013698,2]
[426750087,1782779442000,-500.0,0.00013698,2]
[426750090,1782779442000,-500.0,0.00013698,2]
[426750082,1782779442000,-500.0,0.00013698,2]
[426750083,1782779442000,-512.30421207,0.00013698,2]
[426750084,1782779442000,-500.0,0.00013698,2]
[426750078,1782779442000,-500.0,0.00013698,2]
[426750081,1782779442000,-500.0,0.00013698,2]
[426750168,1782779443000,-500.0,0.00013698,2]
[426750164,1782779443000,-500.0,0.00013698,2]
[426750167,1782779443000,-500.0,0.00013698,2]
[426750162,1782779443000,-500.0,0.00013698,2]
[426750166,1782779443000,-500.0,0.00013698,2]
[426750156,1782779443000,-525.4,0.00013698,2]
[426750158,1782779443000,-525.4,0.00013698,2]
[426750160,1782779443000,-500.0,0.00013698,2]
[426750159,1782779443000,-500.0,0.00013698,2]
[426750155,1782779443000,-525.4,0.00013698,2]
[426750171,1782779443000,-500.0,0.00013698,2]
[426750157,1782779443000,-525.4,0.00013698,2]
[426750169,1782779443000,-500.0,0.00013698,2]
[426750172,1782779443000,-500.0,0.00013698,2]
[426750175,1782779443000,-500.0,0.00013698,2]
[426750165,1782779443000,-500.0,0.00013698,2]
[426750174,1782779443000,-500.0,0.00013698,2]
[426750173,1782779443000,-500.0,0.00013698,2]
[426750176,1782779443000,-500.0,0.00013698,2]
[426750178,1782779443000,-500.0,0.00013698,2]
[426750177,1782779443000,-500.0,0.00013698,2]
[426750179,1782779443000,-841.11,0.00013698,2]
[426750181,1782779443000,-841.11,0.00013698,2]
[426750182,1782779443000,-841.11,0.00013698,2]
[426750180,1782779443000,-841.11,0.00013698,2]
[426750163,1782779443000,-500.0,0.00013698,2]
[426750170,1782779443000,-500.0,0.00013698,2]
[426750153,1782779443000,-525.4,0.00013698,2]
[426750127,1782779443000,-500.0,0.00013698,2]
[426750161,1782779443000,-500.0,0.00013698,2]
[426750126,1782779443000,-500.0,0.00013698,2]
[426750186,1782779443000,-841.11,0.00013698,2]
[426750137,1782779443000,-500.0,0.00013698,2]
[426750135,1782779443000,-500.0,0.00013698,2]
[426750136,1782779443000,-500.0,0.00013698,2]
[426750139,1782779443000,-500.0,0.00013698,2]
[426750138,1782779443000,-500.0,0.00013698,2]
[426750128,1782779443000,-500.0,0.00013698,2]
[426750133,1782779443000,-500.0,0.00013698,2]
[426750129,1782779443000,-500.0,0.00013698,2]
[426750130,1782779443000,-500.0,0.00013698,2]
[426750131,1782779443000,-500.0,0.00013698,2]
[426750134,1782779443000,-500.0,0.00013698,2]
[426750132,1782779443000,-500.0,0.00013698,2]
[426750142,1782779443000,-500.0,0.00013698,2]
[426750140,1782779443000,-500.0,0.00013698,2]
[426750152,1782779443000,-525.4,0.00013698,2]
[426750147,1782779443000,-525.4,0.00013698,2]
[426750145,1782779443000,-500.0,0.00013698,2]
[426750141,1782779443000,-500.0,0.00013698,2]
[426750143,1782779443000,-500.0,0.00013698,2]
[426750144,1782779443000,-500.0,0.00013698,2]
[426750150,1782779443000,-525.4,0.00013698,2]
[426750146,1782779443000,-500.0,0.00013698,2]
[426750149,1782779443000,-525.4,0.00013698,2]
[426750151,1782779443000,-525.4,0.00013698,2]
[426750148,1782779443000,-525.4,0.00013698,2]
[426750154,1782779443000,-525.4,0.00013698,2]
[426750187,1782779443000,-841.11,0.00013698,2]
[426750188,1782779443000,-841.11,0.00013698,2]
[426750183,1782779443000,-841.11,0.00013698,2]
[426750219,1782779443000,-150.99,0.00014504,2]
[426750220,1782779443000,-9999.99,0.00014504,2]
[426750224,1782779443000,-166.03,0.00014511,2]
[426750222,1782779443000,-2604.74,0.00014504,2]
[426750221,1782779443000,-1585.92,0.00014504,2]
[426750223,1782779443000,-999.99,0.00014504,2]
[426750214,1782779443000,-166.66,0.00014253,2]
[426750227,1782779443000,-505.0,0.00015823,2]
[426750226,1782779443000,-272.09,0.00015187,2]
[426750228,1782779443000,-155.73,0.00015831,2]
[426750232,1782779443000,-214.36457203,0.00016438,2]
[426750230,1782779443000,-500.0,0.00016438,2]
[426750233,1782779443000,-251.3659268,0.0001648,2]
[426750229,1782779443000,-199.5,0.0001636,2]
[426750234,1782779443000,-443.43929023,0.0001648,2]
[426750235,1782779443000,-281.16762777,0.0001648,10]
[426750237,1782779443000,-272.09,0.00016567,2]
[426750236,1782779443000,-263.54885701,0.0001648,10]
[426750241,1782779443000,-152.12,0.0001689,2]
[426750240,1782779443000,-202117.7008285,0.00016807,2]
[426750239,1782779443000,-44190.32603756,0.00016676,2]
[426750238,1782779443000,-505.0,0.00016646,3]
[426750242,1782779443000,-166.03,0.00017413,2]
[426750243,1782779443000,-505.0,0.00017468,4]
[426750245,1782779443000,-175.74808293,0.00018024,2]
[426750244,1782779443000,-156.45618947,0.00017797,2]
[426750184,1782779443000,-841.11,0.00013698,2]
[426750225,1782779443000,-505.0,0.00015,2]
[426750218,1782779443000,-9999.99,0.00014504,2]
[426750231,1782779443000,-500.0,0.00016438,2]
[426750216,1782779443000,-250.0,0.00014332,2]
[426750185,1782779443000,-841.11,0.00013698,2]
[426750217,1782779443000,-299.99,0.00014504,2]
[426750189,1782779443000,-841.11,0.00013698,2]
[426750190,1782779443000,-841.11,0.00013698,2]
[426750192,1782779443000,-500.0,0.00013698,2]
[426750191,1782779443000,-841.11,0.00013698,2]
[426750200,1782779443000,-424.12596773,0.00013698,2]
[426750199,1782779443000,-500.0,0.00013698,2]
[426750193,1782779443000,-500.0,0.00013698,2]
[426750196,1782779443000,-500.0,0.00013698,2]
[426750194,1782779443000,-500.0,0.00013698,2]
[426750197,1782779443000,-500.0,0.00013698,2]
[426750195,1782779443000,-500.0,0.00013698,2]
[426750202,1782779443000,-228.5,0.00013699,2]
[426750198,1782779443000,-500.0,0.00013698,2]
[426750213,1782779443000,-298.028141,0.000142,2]
[426750215,1782779443000,-44190.32603756,0.00014288,2]
[426750211,1782779443000,-166.66,0.00013849,2]
[426750209,1782779443000,-162.65,0.000137,2]
[426750205,1782779443000,-761.68,0.00013699,2]
[426750208,1782779443000,-1118.52138394,0.00013699,15]
[426750207,1782779443000,-1000.0,0.00013699,2]
[426750206,1782779443000,-1000.0,0.00013699,2]
[426750203,1782779443000,-190.41,0.00013699,2]
[426750201,1782779443000,-200.0,0.00013699,2]
[426750212,1782779443000,-433.0,0.00013953,2]
[426750210,1782779443000,-272.09,0.00013806,2]
[426750204,1782779443000,-190.41,0.00013699,2]
[426750287,1782779444000,-190.18706304,0.00021,2]
[426750298,1782779444000,-190.18706304,0.000216,2]
[426750286,1782779444000,-652.0,0.00021,2]
[426750297,1782779444000,-160.0,0.00021582,7]
[426750278,1782779444000,-505.0,0.00020759,7]
[426750282,1782779444000,-156.0,0.00021,2]
[426750279,1782779444000,-221.0,0.00021,2]
[426750280,1782779444000,-332.0,0.00021,2]
[426750284,1782779444000,-464.0,0.00021,2]
[426750281,1782779444000,-392.0,0.00021,2]
[426750289,1782779444000,-190.18706304,0.000212,2]
[426750283,1782779444000,-176.0,0.00021,2]
[426750288,1782779444000,-163.0,0.00021,2]
[426750301,1782779444000,-202117.7008285,0.00021889,2]
[426750292,1782779444000,-1365.36,0.00021388,2]
[426750291,1782779444000,-182.10994737,0.0002136,2]
[426750293,1782779444000,-190.18706304,0.000214,2]
[426750295,1782779444000,-44190.32603756,0.00021454,2]
[426750294,1782779444000,-163.071038,0.00021451,2]
[426750296,1782779444000,-505.0,0.00021582,7]
[426750306,1782779444000,-221.0,0.00022,2]
[426750302,1782779444000,-12500.0,0.000219,7]
[426750303,1782779444000,-190.18706304,0.000219,2]
[426750299,1782779444000,-9149.10729189,0.00021878,7]
[426750304,1782779444000,-5000.0,0.00021918,2]
[426750305,1782779444000,-150.0,0.00021918,2]
[426750285,1782779444000,-171.0,0.00021,2]
[426750290,1782779444000,-18470.58,0.00021273,2]
[426750277,1782779444000,-376.88686516,0.00020659,2]
[426750247,1782779444000,-1097.67,0.0001872,2]
[426750276,1782779444000,-196.40126515,0.00020319,2]
[426750246,1782779444000,-505.0,0.00018291,4]
[426750248,1782779444000,-4757.95,0.0001872,2]
[426750249,1782779444000,-44190.32603756,0.00019065,2]
[426750250,1782779444000,-505.0,0.00019114,5]
[426750251,1782779444000,-165.94425905,0.00019305,2]
[426750254,1782779444000,-221.0,0.0002,2]
[426750258,1782779444000,-176.0,0.0002,2]
[426750259,1782779444000,-464.0,0.0002,2]
[426750255,1782779444000,-332.0,0.0002,2]
[426750253,1782779444000,-164.0,0.0002,2]
[426750257,1782779444000,-156.0,0.0002,2]
[426750256,1782779444000,-392.0,0.0002,2]
[426750252,1782779444000,-505.0,0.00019937,6]
[426750274,1782779444000,-151.0,0.00020319,2]
[426750261,1782779444000,-652.0,0.0002,2]
[426750272,1782779444000,-151.0,0.00020319,2]
[426750260,1782779444000,-171.0,0.0002,2]
[426750264,1782779444000,-151.0,0.00020319,2]
[426750262,1782779444000,-163.0,0.0002,2]
[426750265,1782779444000,-151.0,0.00020319,2]
[426750263,1782779444000,-151.0,0.00020319,2]
[426750270,1782779444000,-151.0,0.00020319,2]
[426750266,1782779444000,-151.0,0.00020319,2]
[426750268,1782779444000,-151.0,0.00020319,2]
[426750267,1782779444000,-151.0,0.00020319,2]
[426750269,1782779444000,-151.0,0.00020319,2]
[426750275,1782779444000,-151.0,0.00020319,2]
[426750273,1782779444000,-151.0,0.00020319,2]
[426750271,1782779444000,-151.0,0.00020319,2]
[426750300,1782779444000,-4723.8309444,0.00021888,2]
[426750325,1782779444000,-332.0,0.00023,2]
[426750310,1782779444000,-176.0,0.00022,2]
[426750340,1782779444000,-500.0,0.00023014,2]
[426750345,1782779444000,-297.32710434,0.00023014,2]
[426750341,1782779444000,-500.0,0.00023014,2]
[426750344,1782779444000,-500.0,0.00023014,2]
[426750347,1782779444000,-500.0,0.00023014,2]
[426750357,1782779444000,-200.0,0.00023102,2]
[426750358,1782779444000,-505.0,0.00023228,9]
[426750349,1782779444000,-500.0,0.00023014,2]
[426750346,1782779444000,-500.0,0.00023014,2]
[426750355,1782779444000,-500.0,0.00023014,2]
[426750350,1782779444000,-500.0,0.00023014,2]
[426750352,1782779444000,-500.0,0.00023014,2]
[426750353,1782779444000,-500.0,0.00023014,2]
[426750354,1782779444000,-500.0,0.00023014,2]
[426750356,1782779444000,-456.34226342,0.00023014,2]
[426750348,1782779444000,-500.0,0.00023014,2]
[426750351,1782779444000,-623.95370158,0.00023014,2]
[426750361,1782779444000,-170.97673441,0.00023623,2]
[426750360,1782779444000,-151.17325603,0.00023623,2]
[426750359,1782779444000,-158.90133289,0.00023623,2]
[426750367,1782779444000,-166.02314159,0.00023626,2]
[426750362,1782779444000,-160.45670334,0.00023623,2]
[426750368,1782779444000,-164.74907612,0.00023626,2]
[426750363,1782779444000,-210.59245556,0.00023623,2]
[426750366,1782779444000,-191.47234103,0.00023626,2]
[426750365,1782779444000,-152.42961641,0.00023626,2]
[426750364,1782779444000,-210.33073002,0.00023626,2]
[426750335,1782779444000,-500.0,0.00023014,2]
[426750338,1782779444000,-500.0,0.00023014,2]
[426750307,1782779444000,-332.0,0.00022,2]
[426750339,1782779444000,-500.0,0.00023014,2]
[426750342,1782779444000,-500.0,0.00023014,2]
[426750308,1782779444000,-392.0,0.00022,2]
[426750309,1782779444000,-156.0,0.00022,2]
[426750311,1782779444000,-464.0,0.00022,2]
[426750313,1782779444000,-372.26,0.00022,2]
[426750324,1782779444000,-221.0,0.00023,2]
[426750323,1782779444000,-490.45625931,0.00022849,2]
[426750315,1782779444000,-163.0,0.00022,2]
[426750312,1782779444000,-171.0,0.00022,2]
[426750319,1782779444000,-1666.23,0.00022466,2]
[426750316,1782779444000,-1365.36,0.00022073,2]
[426750322,1782779444000,-1365.36,0.00022758,2]
[426750317,1782779444000,-505.0,0.00022405,8]
[426750320,1782779444000,-292.58,0.00022466,2]
[426750314,1782779444000,-652.0,0.00022,2]
[426750318,1782779444000,-718.46,0.00022466,2]
[426750321,1782779444000,-150.0,0.00022727,7]
[426750343,1782779444000,-500.0,0.00023014,2]
[426750336,1782779444000,-500.0,0.00023014,2]
[426750334,1782779444000,-500.0,0.00023014,2]
[426750329,1782779444000,-464.0,0.00023,2]
[426750330,1782779444000,-171.0,0.00023,2]
[426750327,1782779444000,-162.0,0.00023,2]
[426750337,1782779444000,-500.0,0.00023014,2]
[426750331,1782779444000,-652.0,0.00023,2]
[426750333,1782779444000,-500.0,0.00023014,2]
[426750332,1782779444000,-150.0,0.00023014,2]
[426750326,1782779444000,-392.0,0.00023,2]
[426750328,1782779444000,-176.0,0.00023,2]
[426750407,1782779445000,-275.47,0.00024174,2]
[426750415,1782779445000,-150.0,0.00024775,7]
[426750411,1782779445000,-181.88,0.00024658,2]
[426750406,1782779445000,-150.0,0.00024164,2]
[426750403,1782779445000,-6087.0,0.00024112,2]
[426750400,1782779445000,-500.0,0.0002411,2]
[426750405,1782779445000,-175.74808293,0.0002415,2]
[426750404,1782779445000,-3565.0,0.00024112,2]
[426750402,1782779445000,-256.01,0.0002411,2]
[426750401,1782779445000,-628.65,0.0002411,2]
[426750417,1782779445000,-150.0,0.00024775,7]
[426750408,1782779445000,-372.26,0.0002454,7]
[426750420,1782779445000,-150.0,0.00024775,7]
[426750432,1782779445000,-150.0,0.00024775,7]
[426750418,1782779445000,-150.0,0.00024775,7]
[426750413,1782779445000,-150.0,0.00024775,7]
[426750422,1782779445000,-150.0,0.00024775,7]
[426750423,1782779445000,-150.0,0.00024775,7]
[426750421,1782779445000,-150.0,0.00024775,7]
[426750414,1782779445000,-150.0,0.00024775,7]
[426750416,1782779445000,-150.0,0.00024775,7]
[426750412,1782779445000,-500.0,0.00024685,2]
[426750424,1782779445000,-150.0,0.00024775,7]
[426750429,1782779445000,-150.0,0.00024775,7]
[426750430,1782779445000,-150.0,0.00024775,7]
[426750431,1782779445000,-150.0,0.00024775,7]
[426750398,1782779445000,-525.4,0.00024056,2]
[426750419,1782779445000,-150.0,0.00024775,7]
[426750409,1782779445000,-872.32545242,0.00024549,7]
[426750378,1782779445000,-563.48,0.00023695,2]
[426750399,1782779445000,-500.0,0.00024056,2]
[426750435,1782779445000,-150.0,0.00024775,7]
[426750369,1782779445000,-154.34278298,0.00023626,2]
[426750370,1782779445000,-188.03051048,0.00023626,2]
[426750371,1782779445000,-170.71147048,0.00023626,2]
[426750373,1782779445000,-224.09889363,0.00023626,2]
[426750384,1782779445000,-44190.32603756,0.00023842,2]
[426750372,1782779445000,-179.09121408,0.00023626,2]
[426750383,1782779445000,-180.39720908,0.00023769,2]
[426750374,1782779445000,-186.76582306,0.00023626,2]
[426750382,1782779445000,-173.98413795,0.00023769,2]
[426750375,1782779445000,-156.72742053,0.00023627,2]
[426750376,1782779445000,-165.10609294,0.00023627,2]
[426750379,1782779445000,-157.18284618,0.00023769,2]
[426750410,1782779445000,-1000.0,0.00024658,2]
[426750377,1782779445000,-175.15010602,0.00023627,2]
[426750381,1782779445000,-178.48429204,0.00023769,2]
[426750385,1782779445000,-160.0,0.00024,7]
[426750389,1782779445000,-562.0,0.00024,7]
[426750388,1782779445000,-392.0,0.00024,2]
[426750392,1782779445000,-171.0,0.00024,2]
[426750387,1782779445000,-332.0,0.00024,2]
[426750394,1782779445000,-505.0,0.00024051,10]
[426750391,1782779445000,-464.0,0.00024,2]
[426750390,1782779445000,-176.0,0.00024,2]
[426750393,1782779445000,-652.0,0.00024,2]
[426750396,1782779445000,-683.34,0.00024056,2]
[426750397,1782779445000,-500.0,0.00024056,2]
[426750395,1782779445000,-511.14,0.00024056,2]
[426750380,1782779445000,-179.29465268,0.00023769,2]
[426750425,1782779445000,-150.0,0.00024775,7]
[426750386,1782779445000,-221.0,0.00024,2]
[426750427,1782779445000,-150.0,0.00024775,7]
[426750465,1782779445000,-330.21218589,0.00024884,2]
[426750467,1782779445000,-153.23427527,0.00024884,2]
[426750468,1782779445000,-162.65,0.000249,7]
[426750469,1782779445000,-154.46935744,0.00024967,2]
[426750470,1782779445000,-232.0,0.00025,2]
[426750471,1782779445000,-342.0,0.00025,2]
[426750472,1782779445000,-392.0,0.00025,2]
[426750473,1782779445000,-184.0,0.00025,2]
[426750474,1782779445000,-480.0,0.00025,2]
[426750492,1782779445000,-481.37011003,0.00025717,2]
[426750475,1782779445000,-1000.0,0.00025,2]
[426750476,1782779445000,-173.0,0.00025,2]
[426750477,1782779445000,-666.10058497,0.00025,2]
[426750463,1782779445000,-313.45484105,0.00024884,2]
[426750479,1782779445000,-347.9682759,0.00025031,2]
[426750480,1782779445000,-360.79441816,0.00025031,2]
[426750481,1782779445000,-150.0,0.00025373,2]
[426750482,1782779445000,-253.0,0.0002552,2]
[426750483,1782779445000,-5265.54863112,0.00025581,2]
[426750433,1782779445000,-150.0,0.00024775,7]
[426750485,1782779445000,-505.0,0.00025696,11]
[426750490,1782779445000,-453.51976808,0.00025717,2]
[426750488,1782779445000,-537.88395804,0.00025717,2]
[426750487,1782779445000,-476.70399868,0.00025717,2]
[426750489,1782779445000,-471.54853853,0.00025717,2]
[426750491,1782779445000,-512.93020324,0.00025717,2]
[426750486,1782779445000,-200.0,0.00025704,2]
[426750493,1782779445000,-631.77736668,0.00025717,2]
[426750478,1782779445000,-356.96858408,0.00025031,2]
[426750466,1782779445000,-350.30021204,0.00024884,2]
[426750484,1782779445000,-298.69966629,0.00025636,2]
[426750462,1782779445000,-178.12885866,0.00024884,2]
[426750464,1782779445000,-152.53067988,0.00024884,2]
[426750426,1782779445000,-150.0,0.00024775,7]
[426750434,1782779445000,-150.0,0.00024775,7]
[426750428,1782779445000,-150.0,0.00024775,7]
[426750436,1782779445000,-150.0,0.00024775,7]
[426750439,1782779445000,-317.80266579,0.00024879,2]
[426750438,1782779445000,-505.0,0.00024873,10]
[426750443,1782779445000,-341.95346883,0.00024879,2]
[426750441,1782779445000,-314.36569235,0.00024879,2]
[426750440,1782779445000,-358.58930536,0.00024879,2]
[426750446,1782779445000,-230.09301515,0.00024883,2]
[426750442,1782779445000,-302.34651206,0.00024879,2]
[426750444,1782779445000,-320.91340669,0.00024879,2]
[426750445,1782779445000,-421.18491112,0.00024879,2]
[426750437,1782779445000,-281.97995168,0.00024775,7]
[426750448,1782779445000,-304.85923282,0.00024883,2]
[426750453,1782779445000,-153.21325751,0.00024883,2]
[426750447,1782779445000,-420.66146005,0.00024883,2]
[426750455,1782779445000,-308.68556596,0.00024883,2]
[426750452,1782779445000,-332.04628318,0.00024883,2]
[426750451,1782779445000,-223.87673312,0.00024883,2]
[426750449,1782779445000,-382.94468206,0.00024883,2]
[426750454,1782779445000,-329.49815224,0.00024883,2]
[426750459,1782779445000,-358.18242816,0.00024883,2]
[426750460,1782779445000,-448.19778726,0.00024883,2]
[426750458,1782779445000,-341.42294097,0.00024883,2]
[426750457,1782779445000,-376.06102096,0.00024883,2]
[426750456,1782779445000,-197.35062866,0.00024883,2]
[426750450,1782779445000,-219.25961433,0.00024883,2]
[426750461,1782779445000,-373.53164611,0.00024883,2]
[426750517,1782779446000,-192.38320141,0.00025721,2]
[426750524,1782779446000,-356.25771732,0.00025721,2]
[426750520,1782779446000,-219.43357672,0.00025721,2]
[426750523,1782779446000,-560.29746917,0.00025721,2]
[426750516,1782779446000,-278.29241529,0.00025721,2]
[426750521,1782779446000,-217.3520439,0.00025721,2]
[426750522,1782779446000,-672.29668089,0.00025721,2]
[426750525,1782779446000,-284.76188758,0.00025721,2]
[426750526,1782779446000,-305.06135975,0.00025721,2]
[426750535,1782779446000,-156.51109878,0.00025874,2]
[426750531,1782779446000,-168.55673081,0.00025872,2]
[426750528,1782779446000,-495.31827883,0.00025721,2]
[426750529,1782779446000,-525.45031806,0.00025721,2]
[426750530,1782779446000,-306.46855053,0.00025721,2]
[426750533,1782779446000,-521.95241385,0.00025872,2]
[426750534,1782779446000,-541.19162723,0.00025872,2]
[426750532,1782779446000,-535.45287612,0.00025872,2]
[426750538,1782779446000,-150.0,0.00026067,5]
[426750519,1782779446000,-210.42658487,0.00025721,2]
[426750527,1782779446000,-470.18226158,0.00025721,2]
[426750518,1782779446000,-190.18372415,0.00025721,2]
[426750504,1782779446000,-242.37690128,0.00025721,2]
[426750509,1782779446000,-214.00308607,0.00025721,2]
[426750498,1782779446000,-438.51922866,0.00025721,2]
[426750495,1782779446000,-630.99219007,0.00025721,2]
[426750497,1782779446000,-574.41702309,0.00025721,2]